Cogmind - Beta 11.1 @@@ ROGUE MODE // 2022.05.03 @ 13:22:28 Player: slowdive Result: Destroyed by D-53 Grenadier with Mini Grenade Launcher Performance ------------- Evolutions (0) 0 Regions Visited (2) 400 Robots Destroyed (22) 110 Value Destroyed (539) 539 Prototype IDs (0) 0 Alien Tech Used (0) 0 Bonus (21) 21 TOTAL SCORE: 1070 Bonus ------- Follower Combat Kills 21 Cogmind --------- Core Integrity 0/250 Matter 264/300 Energy 116/250 System Corruption 0% Temperature Cool (0) Movement Rolling (130) Ox2 Location -10/Mines Parts ------- > --- POWER (1) -------- Ion Engine > --- PROPULSION (2) --- Light Treads Compact Wheel > --- UTILITY (2) ------ High-capacity Storage Unit Transport Network Coupler > --- WEAPON (2) ------- Light Assault Rifle > --- INVENTORY (20) --- Light Nuclear Core Light Treads Aluminum Leg Aluminum Leg Improved Heat Sink Medium Storage Unit Large Storage Unit Large Battery (200) Signal Interpreter Seismic Detector Targeting Computer Weapon Shielding Grenade Launcher Rocket Launcher Mining Laser EMP Trap EMP Trap Peak State ------------ > --- POWER ------------ Ion Engine > --- PROPULSION ------- Aluminum Leg Aluminum Leg > --- UTILITY ---------- High-capacity Storage Unit Transport Network Coupler > --- WEAPON ----------- Assault Rifle Assault Rifle > --- INVENTORY -------- Ion Engine Light Treads Light Treads Aluminum Leg Aluminum Leg Wheel Compact Wheel Improved Heat Sink Medium Storage Unit Large Storage Unit Large Storage Unit Large Battery Signal Interpreter Seismic Detector Light Assault Rifle Light Assault Rifle Grenade Launcher Mining Laser [Rating: 9] Favorites ----------- Power Ion Engine Engine Ion Engine Propulsion Aluminum Leg Treads Light Treads Leg Aluminum Leg Wheel Compact Wheel Utility Transport Network Coupler Storage High-capacity Storage Unit Processor Transport Network Coupler Weapon Assault Rifle Energy Gun EM Pulse Gun Ballistic Gun Assault Rifle Launcher Grenade Launcher Build | -11 -10 -10 ------- Run | Scr Mat Min Slots Evolved . | . . . Power . | . . . Propulsion . | . . . Utility . | . . . Weapon . | . . . Parts Attached 20 | . 16 4 Power 3 | . 2 1 Engine 3 | . 2 1 Core . | . . . Reactor . | . . . Propulsion 7 | . 5 2 Treads 1 | . . 1 Leg 5 | . 5 . Wheel 1 | . . 1 Hover . | . . . Flight . | . . . Utility 4 | . 4 . Device . | . . . Storage 3 | . 3 . Processor 1 | . 1 . Hackware . | . . . Protection . | . . . Artifact . | . . . Weapon 6 | . 5 1 Energy Gun 1 | . 1 . Energy Cannon . | . . . Ballistic Gun 4 | . 3 1 Ballistic Cannon . | . . . Launcher 1 | . 1 . Special Weapon . | . . . Impact Weapon . | . . . Slashing Weapon . | . . . Piercing Weapon . | . . . Special Melee Weapon . | . . . Unidentified Prototypes . | . . . Parts Lost 6 | . 2 4 Power 1 | . . 1 Propulsion 2 | . 1 1 Utility . | . . . Weapon 3 | . 1 2 Highest Loss Streak 4 | . 1 4 To Critical Strikes . | . . . Average Slot Usage (%) 99 | . 99 99 Engine 14 | . 14 14 Leg 27 | . 27 27 Storage 15 | . 16 14 Processor 12 | . 11 14 Energy Gun 5 | . 9 . Ballistic Gun 22 | . 17 27 Naked Turns . | . . . Heaviest Build 49 | 13 49 49 Greatest Support 20 | 20 20 20 Greatest Overweight (x) 4 | . 4 2 Average Overweight (x) 1 | . 1 2 Largest Inventory Capacity 20 | . 20 20 Average Capacity 19 | . 18 20 Most Carried 20 | . 18 20 Average Carried 15 | . 11 19 Final Capacity 20 | 8 20 20 Final Carried 18 | 6 18 17 Class Distribution -------------------- 100% | Mutant Dominant Class ---------------- Mutant | -10/Materials Mutant | -10/Mines Resources | -11 -10 -10 ----------- Run | Scr Mat Min Matter Collected 535 | 200 295 40 Remotely . | . . . Salvage Created 634 | . 531 103 Parts 51 | . 42 9 Haulers Intercepted 2 | . 2 . Recyclers Shooed . | . . . Parts Field Recycled . | . . . Retrieved Matter . | . . . Parts Self-Destructed . | . . . Prevented . | . . . Kills | -11 -10 -10 ------- Run | Scr Mat Min Combat Hostiles Destroyed 17 | . 14 3 Guns 11 | . 8 3 AOE 6 | . 6 . Classes Destroyed 4 | . 4 . Hauler 2 | . 2 . Watcher 3 | . 3 . Swarmer 6 | . 6 . Grunt 11 | . 8 3 Best Kill Streak 6 | . 6 3 Combat Bots Only 6 | . 6 3 Max Kills in Single Turn 3 | . 3 1 Gunslinging . | . . . Exploded 2 | . 2 . Melee . | . . . Uniques/NPCs Destroyed . | . . . Combat | -11 -10 -10 -------- Run | Scr Mat Min Damage Taken 1235 | . 480 755 Core 290 | . 82 208 Absorbed by Shields . | . . . Regen/Repaired (Parts) 95 | . 95 . Core Remaining (%) 100 | 100 . . Volleys Fired 43 | . 34 9 Largest 2 | . 2 2 Hottest 60 | . 60 40 Shots Fired 80 | . 64 16 Gun 78 | . 62 16 Cannon . | . . . Launcher 2 | . 2 . Special . | . . . Kinetic 61 | . 45 16 Thermal . | . . . Explosive 2 | . 2 . Electromagnetic 17 | . 17 . Robot Hit Streak 12 | . 6 12 Robot Miss Streak 4 | . 4 2 Penetration Max . | . . . Secondary Targets . | . . . Shots Hit Robots 44 | . 34 10 Core Hits 27 | . 23 4 Critical Kills . | . . . Critical Parts Destroyed . | . . . Critical Strikes 1 | . 1 . Corrupt 1 | . 1 . Melee Attacks . | . . . Impact . | . . . Slashing . | . . . Piercing . | . . . Sneak Attacks . | . . . Combat Hostiles . | . . . Follow-up Attacks . | . . . Damage Inflicted 976 | . 849 127 Guns 544 | . 417 127 Cannons . | . . . Explosions 432 | . 432 . Melee . | . . . Ramming . | . . . Kinetic 454 | . 327 127 Thermal 131 | . 131 . Explosive 301 | . 301 . Electromagnetic 90 | . 90 . Impact . | . . . Slashing . | . . . Piercing . | . . . Highest Corruption . | . . . Average Corruption . | . . . Corruption Purged . | . . . Corruption Blocked . | . . . Overload Shots . | . . . Overflow Damage 28 | . 28 . Projectiles . | . . . Explosions 28 | . 28 . Melee . | . . . Knockbacks . | . . . Impact . | . . . Kinetic . | . . . Secondary . | . . . Self-Inflicted Damage 185 | . 185 . Shots 3 | . 3 . Rammed . | . . . Targets Rammed . | . . . Kicked . | . . . Crushed . | . . . Highest Temperature 24 | . 24 . Average Temperature 12 | . 12 . Received Heat Transfer 126 | . 96 30 Siege Activations . | . . . Robots Corrupted . | . . . Combat Hostiles . | . . . Parts Fried . | . . . Impact Corruptions . | . . . Robots Melted . | . . . Combat Hostiles . | . . . Parts Melted . | . . . Heat Transferred 200 | . 200 . Parts Sabotaged . | . . . Parts Stolen . | . . . Parts Stripped . | . . . Power Chain Reactions 2 | . 2 . Missiles Intercepted . | . . . Alert | -11 -10 -10 ------- Run | Scr Mat Min Peak Influence 345 | . 345 133 Initial 29 | . . 29 Average 76 | . 112 26 Maximum Alert Level 1 | . 1 . Low Security (%) 92 | . 87 100 Level 1 7 | . 12 . Level 2 . | . . . Level 3 . | . . . Level 4 . | . . . Level 5 . | . . . High Security . | . . . Max Security . | . . . Squads Dispatched 3 | . 2 1 Investigation 3 | . 2 1 Extermination . | . . . Reinforcement . | . . . Assault . | . . . Garrison . | . . . Intercept . | . . . Searches Triggered . | . . . Construction Impeded . | . . . Haulers Reinforced . | . . . Active Scanning Responses . | . . . Cargo Convoy Interrupts . | . . . Stealth | -11 -10 -10 --------- Run | Scr Mat Min Distress Signals 2 | . 2 . Communications Jammed . | . . . Distress Signals . | . . . Times Spotted 28 | . 19 9 Peak Tracking Total 6 | . 4 6 Tactical Retreats . | . . . Traps | -11 -10 -10 ------- Run | Scr Mat Min Traps Triggered 3 | . 3 . Indirectly . | . . . Trap Hack Attempts . | . . . Triggered . | . . . Disarmed . | . . . Reprogrammed . | . . . Reused . | . . . Traps Extracted . | . . . Installed . | . . . Triggered . | . . . Most Traps Carried 2 | . . 2 Machines | -11 -10 -10 ---------- Run | Scr Mat Min Machines Disabled 4 | . 2 2 Max in Single Turn 1 | . 1 . Machines Sabotaged . | . . . Garrisons Compromised . | . . . Overloaded Fab Kills . | . . . Hacking | -11 -10 -10 --------- Run | Scr Mat Min Machines Accessed 6 | . 5 1 Terminals 5 | . 4 1 Fabricators . | . . . Repair Stations 1 | . 1 . Recycling Units . | . . . Scanalyzers . | . . . Garrison Access . | . . . Total Hacks 20 | . 17 3 Successful 10 | . 8 2 Failed 10 | . 9 1 Catastrophic . | . . . Database Lockouts . | . . . Manual 10 | . 7 3 Terminals 14 | . 11 3 Fabricators . | . . . Repair Stations 6 | . 6 . Recycling Units . | . . . Scanalyzers . | . . . Garrison Access . | . . . Terminal Hacks 5 | . 3 2 Robot Analysis 3 | . 2 1 Branch Access Points 1 | . 1 . Zone Layout 1 | . . 1 Fabricator Hacks . | . . . Repair Station Hacks 5 | . 5 . Scan Component 3 | . 3 . Repair 2 | . 2 . Recycling Unit Hacks . | . . . Scanalyzer . | . . . Garrison Access Hacks . | . . . Unauthorized Hacks . | . . . Terminals . | . . . Fabricators . | . . . Repair Stations . | . . . Recycling Units . | . . . Scanalyzers . | . . . Garrison Access . | . . . Data Cores Recovered . | . . . Used . | . . . Hacking Detections 5 | . 4 1 Full Trace Events 3 | . 2 1 Feedback Events . | . . . Feedback Blocked . | . . . Robot Schematics Acquired . | . . . Robots Built . | . . . Authchips . | . . . Time . | . . . Total Robot Build Rating . | . . . Part Schematics Acquired . | . . . Parts Built . | . . . Authchips . | . . . Time . | . . . Total Part Build Rating . | . . . Parts Repaired 2 | . 2 . Time 62 | . 62 . Parts Recycled . | . . . Recycled Matter . | . . . Retrieved Matter . | . . . Retrieved Components . | . . . Parts Scanalyzed . | . . . Part Schematics Acquired . | . . . Parts Damaged . | . . . Bothacking | -11 -10 -10 ------------ Run | Scr Mat Min Used RIF Installer . | . . . Robots Hacked . | . . . Non-combat . | . . . Combat . | . . . Robot Hacks Applied . | . . . Relay Couplers Released . | . . . Fabnet Peak Effective % . | . . . Robots Rewired . | . . . Allies Hacked . | . . . Hacks Repelled . | . . . Allies | -11 -10 -10 -------- Run | Scr Mat Min Total Allies 3 | . . 3 Largest Group 3 | . . 3 Highest-Rated Group 40 | . . 40 Highest-Rated Ally 16 | . . 16 Total Orders 1 | . . 1 GUARD 1 | . . 1 Ally Attacks 20 | . . 20 Total Damage 176 | . . 176 Kills 3 | . . 3 Allies Corrupted . | . . . Allies Melted . | . . . Intel | -11 -10 -10 ------- Run | Scr Mat Min Robot Analysis Total 3 | . 2 1 Derelict Logs Recovered 2 | . . 2 Drone Launches . | . . . Drone Recoveries . | . . . Exploration | -11 -10 -10 ------------- Run | Scr Mat Min Turns Passed 3153 | . 1817 1336 Spaces Moved 1152 | 1 654 497 Core . | . . . Treads . | . . . Legs 1150 | 1 654 495 Wheels 2 | . . 2 Hover . | . . . Flight . | . . . Fastest Speed 120 | 120 120 130 Average Speed 250 | 120 243 259 Slowest Speed 400 | 120 400 260 Overloaded Moves . | . . . Propulsion Burnouts . | . . . Robots Hopped . | . . . Cave-ins Triggered . | . . . Exploration Rate (%) 58 | 2 83 90 Regions Visited 2 Branch Regions 1 Pre-discovered Areas 1 | . . 1 Known Exits Taken 1 | . 1 . Unknown Exits Taken 1 | 1 . . Scrap Searched 3 | . . 3 Spaces Dug 8 | . 8 . Terrain Destroyed 37 | . 37 . Melee . | . . . Projectile . | . . . AOE 37 | . 37 . Terrain Rammed . | . . . Walls Destroyed . | . . . Machines Disabled . | . . . Actions | -11 -10 -10 --------- Run | Scr Mat Min Total 1338 | . 809 529 Wait 99 | . 90 9 Move 1150 | . 653 497 Hop . | . . . Pick Up 17 | . 11 6 Fast Attach 7 | . 7 . Attach 5 | . 2 3 Detach 2 | . 2 . Swap 8 | . 7 1 Drop 7 | . 3 4 Fire 43 | . 34 9 Melee . | . . . Ram . | . . . Kick . | . . . Crush . | . . . Escape Stasis . | . . . Rewire . | . . . Trap . | . . . Miscellaneous . | . . . Route ------- -11/Scrapyard -10/Materials (discovered 3 exits: [*Mat x2] / *Min) -10/Mines (discovered 1 exit: [*Mat]) History --------- Turn | Location | Event 1 | -11/Scrapyard | Discovered new exit (range 0) 1 | -11/Scrapyard | Entered Materials 158 | -10/Materials | Discovered new exit (range 14) 316 | -10/Materials | Build established: Mutant 467 | -10/Materials | Identified exit to Mines 768 | -10/Materials | Discovered new exit (range 5) 1210 | -10/Materials | Repaired Assault Rifle 1248 | -10/Materials | Repaired Broken Ion Engine 1387 | -10/Materials | Discovered new exit (range 6) 1818 | -10/Materials | Entered Mines 2331 | -10/Mines | Found a hidden stash of uninstalled traps 2591 | -10/Mines | Learned location of Storage (-9) 2628 | -10/Mines | Assisted by bots powering up and referring to "LRC-V3" 2766 | -10/Mines | Learned Materials terminal intel 2910 | -10/Mines | Received a Rocket Launcher from a helpful Derelict 2946 | -10/Mines | Discovered new exit (range 5) 3123 | -10/Mines | Assembled infested the area 3143 | -10/Mines | Core integrity fell below 50% 3153 | -10/Mines | Core integrity fell below 20% 3154 | -10/Mines | Destroyed by D-53 Grenadier with Mini Grenade Launcher Last Messages --------------- 02975_ Acquired 18 matter. 02984_ G-34 Mercenary destroyed. 02987_ Acquired 12 matter. 03000_ Searching scrap... 03000_ Found Sml. Storage Unit. 03000_ Found Signal Interpreter. 03000_ Found Huge Storage Unit. 03000_ Found Hcp. Storage Unit. 03000_ Found 15 Matter. 03055_ K-01 Serf collects debris. 03123_ ALERT: Infestation in the mines, dispatching Demolisher response squad. 03136_ C-30 ARC bursts open, deploying its payload. 03136_ D-53 Grenadier unfolds itself. 03140_ Ion Engine destroyed. 03141_ Assault Rifle destroyed. 03144_ Aluminum Leg destroyed. 03146_ Assault Rifle destroyed. 03151_ The unstable cave ceiling collapses. 03152_ U-05 Engineer lays Concrete. Map ----- +----------------------------------------------------+ | | | | | | | | | | | | | | | | | | | | | | | | | | | ?????????????????????????????????????????????????? | | ???????????????????????????????????????????#####?? | | ??????????????????????????????????????????## ##? | | ?????????????????????????????????????????## #? | | ???????????????????????????????????????### #? | | ????????????????????????#######???????## ## | | ???????????????????????## ##??????# """ # | | ?????????????????????### #####??# """ # | | ????????????????????## # ##?## """ # | | ????????????????????# #??## """ ## | | ???????????????????## ##?## ##? | | ???????????????????# u ### #?? | | ???????????????????# @ # #?? | | ???????????????????## ### ## #?? | | ????????????????????## #?###### ##?? | | ?????????????????????# #?????## ##??? | | ?????????????????????## ## #?????# ##???? | | ??????????????????????#a ## dd #?????## ##????? | | ?????????????????????? ## #??????# #?????? | | ?????????????????????### ### %##?????# #?????? | | ???????????????????????##??# ####### #?????? | | ????????????????????????????# k ! !#?????? | | ????????????????????###??????# #######!%!#?????? | | ???????????????????? #???????## #?????# ###?????? | | ???????####?????????# #????????# #???### ######??? | | ??????## ######????# #????????# #???# #??? | | ??????# #????# #????????# #???# =!* #??? | | ?????## #????# ##??????? #???# *%=%! #??? | | ###### ## ###### ##??????###???# [=""" ##?? | | # ## ##???????????#